bitfinex/quotes_BTCUSD_20240607
["timestamp","ask_amount","ask_price","bid_price","bid_amount"]
[1717795487552,0.0086,69384.0,69383.0,2.2730203]
[1717795488021,0.0086,69384.0,69383.0,2.2590203]
[1717795488227,0.0086,69384.0,69383.0,2.2730203]
[1717795490469,0.0086,69384.0,69383.0,2.2590203]
[1717795490906,0.0086,69384.0,69383.0,2.2730203]
[1717795491116,0.0086,69384.0,69383.0,2.2590203]
[1717795491431,0.0086,69384.0,69383.0,2.2730203]
[1717795491703,0.0086,69384.0,69383.0,2.2590203]
[1717795491908,0.0086,69384.0,69383.0,2.2730203]
[1717795492317,0.0086,69384.0,69383.0,2.4233203]
[1717795492931,0.0086,69384.0,69383.0,2.4373203]
[1717795493977,0.0086,69384.0,69383.0,2.4233203]
[1717795494174,0.0086,69384.0,69383.0,2.4373203]
[1717795494597,0.0086,69384.0,69383.0,2.4093203]
[1717795494806,0.0086,69384.0,69383.0,2.4233203]
[1717795495249,0.0086,69384.0,69383.0,2.19896803]
[1717795495441,0.0086,69384.0,69383.0,2.43727688]
[1717795495697,0.0086,69384.0,69383.0,2.42327688]
[1717795495908,0.0086,69384.0,69383.0,2.40927688]
[1717795496120,0.0086,69384.0,69383.0,2.42327688]
[1717795496541,0.0086,69384.0,69383.0,2.42327233]
[1717795497971,0.0086,69384.0,69383.0,2.40927233]
[1717795498174,0.0086,69384.0,69383.0,2.43727233]
[1717795498608,0.0086,69384.0,69383.0,2.40927233]
[1717795498818,0.0086,69384.0,69383.0,2.42327233]
[1717795499030,0.0086,69384.0,69383.0,2.43727233]
[1717795499242,0.0086,69384.0,69383.0,2.42327233]
[1717795499429,0.0086,69384.0,69383.0,2.43727233]
[1717795499640,0.0086,69384.0,69383.0,2.42327233]
[1717795500817,2e-07,69386.0,69385.0,1.323861]
[1717795501051,2e-07,69386.0,69385.0,2.78444133]
[1717795501259,2e-07,69386.0,69385.0,2.43424133]
[1717795501465,2e-07,69386.0,69385.0,2.55204133]
[1717795501686,2e-07,69386.0,69385.0,2.78444133]
[1717795502333,2e-07,69386.0,69385.0,2.79844133]
[1717795502941,2e-07,69386.0,69385.0,2.78444085]
[1717795504399,2e-07,69386.0,69385.0,2.81244085]
[1717795505960,2e-07,69386.0,69385.0,2.8124375]
[1717795506177,2e-07,69386.0,69385.0,2.7844375]
[1717795506394,2e-07,69386.0,69385.0,2.7984375]
[1717795507721,2e-07,69386.0,69385.0,2.7844375]
[1717795508061,2e-07,69386.0,69385.0,2.8124375]
[1717795508492,2e-07,69386.0,69385.0,2.7984375]
[1717795508837,2e-07,69386.0,69385.0,2.79842788]
[1717795509239,2e-07,69386.0,69385.0,2.81242788]
[1717795509488,2e-07,69386.0,69385.0,2.78442788]
[1717795509695,2e-07,69386.0,69385.0,2.79842788]
[1717795509924,2e-07,69386.0,69385.0,2.81242788]
[1717795511198,2e-07,69386.0,69385.0,2.78442788]
[1717795511373,2e-07,69386.0,69385.0,2.79842788]
[1717795511574,2e-07,69386.0,69385.0,2.81242788]
[1717795511828,2e-07,69386.0,69385.0,2.79842788]
[1717795512002,2e-07,69386.0,69385.0,2.78442788]
[1717795512242,2e-07,69386.0,69385.0,2.81242788]
[1717795512826,2e-07,69386.0,69385.0,2.87009788]
[1717795519186,2e-07,69386.0,69385.0,2.87009627]
[1717795521690,2e-07,69386.0,69385.0,2.85609627]
[1717795521901,2e-07,69386.0,69385.0,2.84209627]
[1717795522160,2e-07,69386.0,69385.0,2.85609627]
[1717795522362,2e-07,69386.0,69385.0,2.87009627]
[1717795522564,2e-07,69386.0,69385.0,2.84209627]
[1717795522896,2e-07,69386.0,69385.0,2.85609627]
[1717795524372,2e-07,69386.0,69385.0,2.87009627]
[1717795524887,2e-07,69386.0,69385.0,2.85609627]
[1717795525089,2e-07,69386.0,69385.0,2.87009627]
[1717795525498,2e-07,69386.0,69385.0,2.87379627]
[1717795528466,2e-07,69386.0,69385.0,2.87379183]
[1717795530266,2e-07,69386.0,69385.0,2.96393048]
[1717795530463,2e-07,69386.0,69385.0,2.87379183]
[1717795530679,2e-07,69386.0,69385.0,2.96393058]
[1717795530884,2e-07,69386.0,69385.0,2.81003058]
[1717795531508,0.0086,69390.0,69389.0,1.323805]
[1717795531509,2e-07,69390.0,69389.0,1.323805]
[1717795531714,2e-07,69390.0,69389.0,1.94923426]
[1717795531928,2e-07,69390.0,69389.0,2.10103426]
[1717795533596,2e-07,69390.0,69389.0,2.17083426]
[1717795533854,2e-07,69390.0,69389.0,2.19883426]
[1717795538346,2e-07,69390.0,69389.0,2.28023426]
[1717795542694,2e-07,69390.0,69389.0,2.28022526]
[1717795545087,2e-07,69390.0,69389.0,2.28325683]
[1717795545313,2e-07,69390.0,69389.0,2.26925683]
[1717795546707,2e-07,69390.0,69389.0,2.29725683]
[1717795546923,2e-07,69390.0,69389.0,2.28325683]
[1717795547174,2e-07,69390.0,69389.0,2.26925683]
[1717795547387,2e-07,69390.0,69389.0,2.29725683]
[1717795548700,2e-07,69390.0,69389.0,2.28325683]
[1717795549636,2e-07,69390.0,69389.0,2.26925683]
[1717795549862,2e-07,69390.0,69389.0,2.28325683]
[1717795550738,2e-07,69390.0,69389.0,2.29725762]
[1717795550972,2e-07,69390.0,69389.0,2.28325762]
[1717795551225,2e-07,69390.0,69389.0,2.29725762]
[1717795552968,2e-07,69390.0,69389.0,2.38739409]
[1717795553652,2e-07,69390.0,69389.0,2.54319409]
[1717795553874,2e-07,69390.0,69389.0,2.38739409]
[1717795565174,2e-07,69390.0,69389.0,2.67562409]
[1717795566967,2e-07,69390.0,69389.0,2.77562409]
[1717795567168,2e-07,69390.0,69389.0,2.87562409]
[1717795569232,2e-07,69390.0,69389.0,2.86162409]
[1717795569897,2e-07,69390.0,69389.0,2.87562409]
[1717795570399,2e-07,69390.0,69389.0,2.86162409]
[1717795570601,2e-07,69390.0,69389.0,2.87562409]
[1717795571248,2e-07,69390.0,69389.0,2.86162409]
[1717795571445,2e-07,69390.0,69389.0,2.87562409]
[1717795574730,2e-07,69390.0,69389.0,2.77562409]
[1717795574932,2e-07,69390.0,69389.0,3.03552409]
[1717795577695,0.06354849,69408.0,69407.0,0.720387]
[1717795577949,0.01081643,69414.0,69409.0,0.43222]
[1717795578152,0.08335783,69410.0,69409.0,1.03731226]
[1717795578331,0.08335783,69410.0,69409.0,1.15167458]
[1717795579075,0.08335783,69410.0,69409.0,1.41243697]
[1717795579218,0.08335783,69410.0,69409.0,1.37593408]
[1717795579430,0.08335783,69410.0,69409.0,1.39743142]
[1717795579856,0.08335783,69410.0,69409.0,1.37593408]
[1717795580500,0.20185783,69410.0,69409.0,1.37593408]
[1717795580713,0.20185783,69410.0,69409.0,1.33137176]
[1717795581124,0.20285783,69410.0,69409.0,1.35437176]
[1717795581343,0.20285783,69410.0,69409.0,1.12211226]
[1717795581599,0.20185783,69410.0,69409.0,1.12211226]
[1717795581813,0.20185783,69410.0,69409.0,1.15159956]
[1717795582039,0.20185783,69410.0,69409.0,1.28705906]
[1717795582285,0.20185783,69410.0,69409.0,1.14359956]
[1717795582509,0.20185783,69410.0,69409.0,1.28380547]
[1717795582777,0.20185783,69410.0,69409.0,1.29280547]
[1717795583005,0.20185783,69410.0,69409.0,1.49557767]
[1717795583435,0.20185783,69410.0,69409.0,1.27131817]
[1717795583644,0.20185783,69410.0,69409.0,1.3068014]
[1717795583868,0.20185783,69410.0,69409.0,1.2928014]
[1717795584087,0.20185783,69410.0,69409.0,1.2838014]
[1717795584306,0.20185783,69410.0,69409.0,1.15659549]
[1717795584508,0.20185783,69410.0,69409.0,1.13611226]
[1717795585134,0.20185783,69410.0,69409.0,1.13511226]
[1717795585352,0.20185783,69410.0,69409.0,1.14611226]
[1717795587434,0.20185783,69410.0,69409.0,1.16350751]
[1717795587689,0.20185783,69410.0,69409.0,1.30862538]
[1717795589398,0.20185783,69410.0,69409.0,1.16350751]
[1717795591232,0.20185783,69410.0,69409.0,1.09370751]
[1717795591433,0.20185783,69410.0,69409.0,1.16350751]
[1717795592453,0.20185783,69410.0,69409.0,1.16348053]
[1717795593046,0.19345783,69410.0,69409.0,0.17349935]
[1717795593243,0.025,69397.0,69386.0,0.000946]
[1717795593486,0.005,69387.0,69386.0,0.000946]
[1717795593693,0.06977553,69388.0,69387.0,0.144119]
[1717795593902,0.06977553,69388.0,69387.0,0.28853793]
[1717795593903,0.18774898,69388.0,69387.0,0.28853793]
[1717795594166,0.18774898,69388.0,69387.0,0.144119]
[1717795594167,0.80986196,69388.0,69387.0,0.144119]
[1717795594345,0.50114517,69388.0,69387.0,0.144119]
[1717795594544,0.49032561,69388.0,69387.0,0.144119]
[1717795594772,0.8098889,69388.0,69387.0,0.145119]
[1717795594982,0.8098889,69388.0,69387.0,0.148119]
[1717795595188,0.8098889,69388.0,69387.0,0.145119]
[1717795595387,0.8098889,69388.0,69387.0,0.144119]
[1717795595587,0.8098889,69388.0,69387.0,0.145119]
[1717795595787,0.80990921,69388.0,69387.0,0.145119]
[1717795596613,0.69853622,69388.0,69387.0,0.146119]
[1717795596813,0.71153622,69388.0,69387.0,0.146119]
[1717795597144,0.79771075,69388.0,69387.0,0.144119]
[1717795597387,0.52352758,69388.0,69387.0,0.146119]
[1717795598256,0.18239377,69388.0,69387.0,0.146119]
[1717795599007,0.22310963,69388.0,69387.0,0.146119]
[1717795599214,0.18084294,69388.0,69387.0,0.146119]
[1717795599492,0.16084294,69388.0,69387.0,0.146119]
[1717795599844,0.11778976,69388.0,69387.0,0.146119]
[1717795600019,0.13778976,69388.0,69387.0,0.146119]
[1717795600226,0.15850562,69388.0,69387.0,0.146119]
[1717795600435,0.22154436,69388.0,69387.0,0.146119]
[1717795600636,0.1808285,69388.0,69387.0,0.146119]
[1717795600835,0.13778976,69388.0,69387.0,0.146119]
[1717795602298,0.13778976,69388.0,69387.0,0.002]
[1717795602898,0.1808285,69388.0,69387.0,0.002]
[1717795603109,0.22205131,69388.0,69387.0,0.002]
[1717795603312,0.17901257,69388.0,69387.0,0.002]
[1717795605553,0.18588616,69388.0,69387.0,0.002]
[1717795607890,0.14466335,69388.0,69387.0,0.002]
[1717795610251,0.24466335,69388.0,69387.0,0.002]
[1717795611406,0.25548446,69388.0,69387.0,0.002]
[1717795613414,0.24466335,69388.0,69387.0,0.002]
[1717795613882,0.31446335,69388.0,69387.0,0.002]
[1717795614755,0.6136741,69388.0,69387.0,0.002]
[1717795617253,0.61350067,69388.0,69387.0,0.002]
[1717795618188,0.7087922,69388.0,69387.0,0.002]
[1717795619024,0.6389922,69388.0,69387.0,0.002]
[1717795619198,0.63211861,69388.0,69387.0,0.002]
[1717795621179,0.74426335,69388.0,69387.0,0.002]
[1717795621813,0.72426335,69388.0,69387.0,0.002]
[1717795623314,0.74426335,69388.0,69387.0,0.002]
[1717795623783,0.72426335,69388.0,69387.0,0.002]
[1717795624679,0.72426335,69388.0,69387.0,0.002946]
[1717795624887,0.74426335,69388.0,69387.0,0.002946]
[1717795625108,0.72426335,69388.0,69387.0,0.002946]
[1717795627060,0.74426335,69388.0,69387.0,0.002946]
[1717795627262,0.73226335,69388.0,69387.0,0.001946]
[1717795627462,0.74226335,69388.0,69387.0,0.002946]
[1717795627682,0.69626335,69388.0,69387.0,0.001946]
[1717795627900,0.70826335,69388.0,69387.0,0.002946]
[1717795628250,0.69626335,69388.0,69387.0,0.001946]
[1717795628472,0.70826335,69388.0,69387.0,0.002946]
[1717795628878,0.69826335,69388.0,69387.0,0.001946]
[1717795629296,0.70926335,69388.0,69387.0,0.002946]
[1717795631118,0.72926335,69388.0,69387.0,0.002946]
[1717795631734,0.70926335,69388.0,69387.0,0.002946]
[1717795632139,0.75224418,69388.0,69387.0,0.002946]
[1717795633202,0.77373459,69388.0,69387.0,0.002946]
[1717795634189,1.02884451,69388.0,69387.0,0.002946]
[1717795634377,1.02884232,69388.0,69387.0,0.002946]
[1717795635296,1.13638881,69388.0,69387.0,0.002946]
[1717795636186,1.02884232,69388.0,69387.0,0.002946]
[1717795636831,1.04884232,69388.0,69387.0,0.002946]
[1717795637040,1.02884473,69388.0,69387.0,0.002946]
[1717795637692,1.15814956,69388.0,69387.0,0.002946]
[1717795638459,1.02884473,69388.0,69387.0,0.002946]
[1717795639279,1.19431266,69388.0,69387.0,0.002946]
[1717795640208,1.04884473,69388.0,69387.0,0.002946]
[1717795642627,1.02884473,69388.0,69387.0,0.002946]
[1717795644639,0.72963398,69388.0,69387.0,0.002946]
[1717795644847,1.02883998,69388.0,69387.0,0.002946]
[1717795646337,0.5223241,69388.0,69387.0,0.002946]
[1717795646556,1.02891072,69388.0,69387.0,0.002946]
[1717795647441,1.0056701,69388.0,69387.0,0.002946]
[1717795647869,0.7064641,69388.0,69387.0,0.002946]
[1717795648237,1.00566798,69388.0,69387.0,0.002946]
[1717795649549,0.7064641,69388.0,69387.0,0.002946]
[1717795649715,1.00566812,69388.0,69387.0,0.002946]
[1717795651252,1.00566476,69388.0,69387.0,0.002946]
[1717795651798,1.00585095,69388.0,69387.0,0.002946]
[1717795654660,1.00585095,69388.0,69387.0,0.081646]
[1717795657515,1.00671095,69388.0,69387.0,0.081646]
[1717795659243,0.99847087,69388.0,69387.0,0.081646]
[1717795660092,0.89847087,69388.0,69387.0,0.002946]
[1717795660299,0.99847087,69388.0,69387.0,0.158246]
[1717795660723,1.14448922,69388.0,69387.0,0.158246]
[1717795662069,0.6788955,69388.0,69387.0,0.158246]
[1717795662276,0.99846436,69388.0,69387.0,0.158246]
[1717795663374,1.1444804,69388.0,69387.0,0.158246]
[1717795663583,1.10789119,69388.0,69387.0,0.158246]
[1717795664815,1.10747032,69388.0,69387.0,0.158246]
[1717795665022,1.10747032,69388.0,69387.0,0.44678393]
[1717795665198,0.96145428,69388.0,69387.0,0.52548393]
[1717795666875,0.89786749,69388.0,69387.0,0.52548393]
[1717795669269,0.89769404,69388.0,69387.0,0.52548393]
[1717795672620,0.89768221,69388.0,69387.0,0.52548393]
[1717795674009,0.89768221,69388.0,69387.0,0.54848393]
[1717795674010,0.68549096,69388.0,69387.0,0.54848393]
[1717795674461,0.81520847,69388.0,69387.0,0.54848393]
[1717795674666,0.68549096,69388.0,69387.0,0.54848393]
[1717795674876,0.81520858,69388.0,69387.0,0.54848393]
[1717795675250,0.81518319,69388.0,69387.0,0.54848393]
[1717795677777,0.52491526,69388.0,69387.0,0.54848393]
[1717795677993,0.39519796,69388.0,69387.0,0.54848393]
[1717795678246,0.39519796,69388.0,69387.0,0.60352152]
[1717795678404,0.39519796,69388.0,69387.0,0.89175952]
[1717795678561,0.39519796,69388.0,69387.0,0.83672193]
[1717795678763,0.19453253,69388.0,69387.0,0.83672193]
[1717795678985,0.39519796,69388.0,69387.0,0.98629089]
[1717795679186,0.07565417,69388.0,69387.0,0.98629089]
[1717795679388,0.16209835,69388.0,69387.0,0.98629089]
[1717795679850,0.48164214,69388.0,69387.0,0.98629089]
[1717795680185,0.48164214,69388.0,69387.0,0.98529089]
[1717795680590,0.48164214,69388.0,69387.0,0.98528639]
[1717795681441,0.48164214,69388.0,69387.0,0.98428639]
[1717795681843,0.48164214,69388.0,69387.0,0.98628639]
[1717795681844,0.39519796,69388.0,69387.0,0.98628639]
[1717795682049,0.39519796,69388.0,69387.0,0.98528639]
[1717795682226,0.07565417,69388.0,69387.0,0.98428639]
[1717795682640,0.14044609,69388.0,69387.0,0.98428639]
[1717795683267,0.07565417,69388.0,69387.0,0.98428639]
[1717795683660,0.07565417,69388.0,69387.0,1.07125123]
[1717795683876,0.07564162,69388.0,69387.0,1.07125123]
[1717795684236,0.11882247,69388.0,69387.0,0.98428639]
[1717795684659,0.11882247,69388.0,69387.0,0.98528639]
[1717795685061,0.11882247,69388.0,69387.0,0.98428639]
[1717795685290,0.07564162,69388.0,69387.0,0.98428639]
[1717795686528,0.07564031,69388.0,69387.0,0.98428639]
[1717795686729,0.07564031,69388.0,69387.0,1.11372863]
[1717795686927,0.07564031,69388.0,69387.0,0.98428639]
[1717795687458,0.07564031,69388.0,69387.0,0.98428254]
[1717795688228,0.07564006,69388.0,69387.0,0.98428205]
[1717795689362,0.07564014,69388.0,69387.0,0.83472193]
[1717795689568,0.07564014,69388.0,69387.0,0.98428221]
[1717795690598,0.07564014,69388.0,69387.0,0.83472193]
[1717795691009,0.07564014,69388.0,69387.0,0.98428162]
[1717795691822,0.07564014,69388.0,69387.0,1.00428162]
[1717795692604,0.07564014,69388.0,69387.0,0.98428162]
[1717795693506,0.07564014,69388.0,69387.0,1.00428162]
[1717795693692,0.07564014,69388.0,69387.0,1.29251962]
[1717795695769,0.07564014,69388.0,69387.0,1.27251962]
[1717795696499,0.07564014,69388.0,69387.0,1.29251962]
[1717795697493,0.07564014,69388.0,69387.0,1.27251962]
[1717795697935,0.07564014,69388.0,69387.0,1.29251962]
[1717795698064,0.07564014,69388.0,69387.0,1.27251962]
[1717795698275,0.07564014,69388.0,69387.0,1.29251962]
[1717795698886,0.07564014,69388.0,69387.0,1.27251962]
[1717795699140,0.07564014,69388.0,69387.0,1.29251962]
[1717795699374,0.07564014,69388.0,69387.0,1.29451962]
[1717795699598,0.07564014,69388.0,69387.0,1.12495993]
[1717795699809,0.07564014,69388.0,69387.0,1.29451229]
[1717795700489,0.07564014,69388.0,69387.0,1.27451229]
[1717795700714,0.07564014,69388.0,69387.0,1.29251229]
[1717795700905,0.07564014,69388.0,69387.0,1.27251229]
[1717795701126,0.07564014,69388.0,69387.0,1.29551229]
[1717795701500,0.07564014,69388.0,69387.0,1.29451229]
[1717795701733,0.07564014,69388.0,69387.0,1.29251229]
[1717795702118,0.07564014,69388.0,69387.0,1.29651229]
[1717795702324,0.07564014,69388.0,69387.0,1.29251229]
[1717795703406,0.07564014,69388.0,69387.0,1.29451229]
[1717795703788,0.07564014,69388.0,69387.0,1.29251229]
[1717795704221,0.07564014,69388.0,69387.0,1.29451229]
[1717795704437,0.07564014,69388.0,69387.0,1.29851229]
[1717795704654,0.07564014,69388.0,69387.0,1.29651229]
[1717795704866,0.07564014,69388.0,69387.0,1.29451229]
[1717795705089,0.07564014,69388.0,69387.0,1.29851229]
[1717795707740,0.07564014,69388.0,69387.0,1.27851229]
[1717795707985,0.07564014,69388.0,69387.0,1.29851229]
[1717795708185,0.07514014,69388.0,69387.0,1.29851229]
[1717795713183,0.07514014,69388.0,69387.0,1.29651229]
[1717795713389,0.07514014,69388.0,69387.0,1.29451229]
[1717795713594,0.07514014,69388.0,69387.0,1.29951229]
[1717795713937,0.07514014,69388.0,69387.0,1.29251229]
[1717795714157,0.07514014,69388.0,69387.0,1.29451229]
[1717795714344,0.07514014,69388.0,69387.0,1.29951229]
[1717795714620,0.07514014,69388.0,69387.0,1.29451229]
[1717795714979,0.07514014,69388.0,69387.0,1.29951229]
[1717795715184,0.07514014,69388.0,69387.0,1.29451229]
[1717795715814,0.07514014,69388.0,69387.0,1.29251229]
[1717795716166,0.07514014,69388.0,69387.0,1.29451229]
[1717795716494,0.07514014,69388.0,69387.0,1.29251229]
[1717795716688,0.07513793,69388.0,69387.0,1.2975158]
[1717795716946,0.07513793,69388.0,69387.0,1.2945158]
[1717795717281,0.07513793,69388.0,69387.0,1.2975158]
[1717795717497,0.07513793,69388.0,69387.0,1.2925158]
[1717795717736,0.07513793,69388.0,69387.0,1.2945158]
[1717795717960,0.07513793,69388.0,69387.0,1.2995158]
[1717795718148,0.07513793,69388.0,69387.0,1.2945158]
[1717795718593,0.07513793,69388.0,69387.0,1.2995158]
[1717795719319,0.07513793,69388.0,69387.0,1.2975158]
[1717795719693,0.07513793,69388.0,69387.0,1.2995158]
[1717795720235,0.1183157,69388.0,69387.0,1.2995158]
[1717795720440,0.07513793,69388.0,69387.0,1.2995158]
[1717795720647,0.1183157,69388.0,69387.0,1.2995158]
[1717795721047,0.11814225,69388.0,69387.0,1.2995158]
[1717795721470,0.11814225,69388.0,69387.0,1.43142244]
[1717795721920,0.11814307,69388.0,69387.0,1.43142408]
[1717795722916,0.11814307,69388.0,69387.0,1.42442252]
[1717795723149,0.11814307,69388.0,69387.0,1.42942252]
[1717795723361,0.11814307,69388.0,69387.0,1.43142252]
[1717795723561,0.11819415,69388.0,69387.0,1.42642077]
[1717795723771,0.11819415,69388.0,69387.0,1.42942077]
[1717795724177,0.11819415,69388.0,69387.0,1.29951413]
[1717795724372,0.0749653,69388.0,69387.0,1.29951413]
[1717795725227,0.0749653,69388.0,69387.0,1.27951383]
[1717795725622,0.0749653,69388.0,69387.0,1.29951383]
[1717795725828,0.0749653,69388.0,69387.0,1.27951383]
[1717795726188,0.0749653,69388.0,69387.0,1.2795134]
[1717795726189,0.13982402,69388.0,69387.0,1.2795134]
[1717795726397,0.39445515,69388.0,69387.0,1.2795134]
[1717795726569,0.07496328,69388.0,69387.0,1.2775134]
[1717795726985,0.07496328,69388.0,69387.0,1.2815134]
[1717795727188,0.07496328,69388.0,69387.0,1.2765134]
[1717795727390,0.07496328,69388.0,69387.0,1.2725134]
[1717795727597,0.13982642,69388.0,69387.0,1.2795134]
[1717795727770,0.13982642,69388.0,69387.0,1.2725134]
[1717795727974,0.13982642,69388.0,69387.0,1.2875134]
[1717795727975,0.07496328,69388.0,69387.0,1.2875134]
[1717795728184,0.07496328,69388.0,69387.0,1.3055134]
[1717795728385,0.13982642,69388.0,69387.0,1.3055134]
[1717795728714,0.13982642,69388.0,69387.0,1.2855134]
[1717795728936,0.13982642,69388.0,69387.0,1.3055134]
[1717795729354,0.13982642,69388.0,69387.0,1.2805134]
[1717795729553,0.13982642,69388.0,69387.0,1.2775134]
[1717795729798,0.13982642,69388.0,69387.0,1.1222134]
[1717795730011,0.13982642,69388.0,69387.0,1.3082134]
[1717795730224,0.13982642,69388.0,69387.0,1.3152134]
[1717795733047,0.13982642,69388.0,69387.0,1.2952134]
[1717795733251,0.13982642,69388.0,69387.0,1.3152134]
[1717795735390,0.13982642,69388.0,69387.0,1.3102134]
[1717795735803,0.13982642,69388.0,69387.0,1.3152134]
[1717795736174,0.13984439,69388.0,69387.0,1.3152134]
[1717795736380,0.07496328,69388.0,69387.0,1.3102134]
[1717795736589,0.07496328,69388.0,69387.0,1.3092134]
[1717795736768,0.07496328,69388.0,69387.0,1.2892134]
[1717795737057,0.07496328,69388.0,69387.0,1.2972134]
[1717795737715,0.07496355,69388.0,69387.0,1.3172134]
[1717795738192,0.07496355,69388.0,69387.0,1.2972134]
[1717795738357,0.39444633,69388.0,69387.0,1.2972134]
[1717795738563,0.07496364,69388.0,69387.0,1.3172134]
[1717795739212,0.13985119,69388.0,69387.0,1.4530442]
[1717795739450,0.07496364,69388.0,69387.0,1.4530442]
[1717795739875,0.07496364,69388.0,69387.0,1.67009901]
[1717795740436,0.07496364,69388.0,69387.0,1.4530442]
[1717795740669,0.07496364,69388.0,69387.0,1.45302616]
[1717795740835,0.07496364,69388.0,69387.0,1.33873594]
[1717795741420,0.0749578,69388.0,69387.0,1.33874321]
[1717795741828,0.0749578,69388.0,69387.0,1.31720243]
[1717795742442,0.0749578,69388.0,69387.0,1.31120243]
[1717795743097,0.0749578,69388.0,69387.0,1.31020243]
[1717795743294,0.0749578,69388.0,69387.0,1.32020243]
[1717795746183,0.0749578,69388.0,69387.0,1.32020442]
[1717795747125,0.074959,69388.0,69387.0,1.32020442]
[1717795751381,0.0749591,69388.0,69387.0,1.32020504]
[1717795753644,0.00018655,69388.0,69387.0,1.32020504]
[1717795753845,0.07495846,69388.0,69387.0,1.32020504]
[1717795754550,0.07495846,69388.0,69387.0,1.52020504]
[1717795754912,0.07495846,69388.0,69387.0,1.3585255]
[1717795755741,0.07495851,69388.0,69387.0,1.35852432]
[1717795756397,0.07495851,69388.0,69387.0,1.32020386]
[1717795756730,0.07495851,69388.0,69387.0,1.52020386]
[1717795756936,0.07495875,69388.0,69387.0,1.32020386]
[1717795757338,0.07495875,69388.0,69387.0,1.52020386]
[1717795757660,0.07495875,69388.0,69387.0,1.32020386]
[1717795758253,0.07495734,69388.0,69387.0,1.32020386]
[1717795759378,0.07495734,69388.0,69387.0,1.46532173]
[1717795759915,0.07495734,69388.0,69387.0,1.32020386]
[1717795760122,0.07495734,69388.0,69387.0,1.52020386]
[1717795760331,0.07495734,69388.0,69387.0,1.52020271]
[1717795765710,0.00018655,69388.0,69387.0,1.52020271]
[1717795766046,0.07495761,69388.0,69387.0,1.52020271]
[1717795766370,0.07495761,69388.0,69387.0,1.54174102]
[1717795768449,0.07495761,69388.0,69387.0,1.61057058]
[1717795769020,0.00018655,69388.0,69387.0,1.43948949]
[1717795769229,0.07495753,69388.0,69387.0,1.61057245]
[1717795770260,0.07495753,69388.0,69387.0,1.58903145]
[1717795770926,0.07495753,69388.0,69387.0,1.61057245]
[1717795772637,0.07495829,69388.0,69387.0,1.61057245]
[1717795773633,0.07495856,69388.0,69387.0,1.61057245]
[1717795774245,0.07495856,69388.0,69387.0,1.54174289]
[1717795779379,0.07495856,69388.0,69387.0,1.29704289]
[1717795779586,0.07495856,69388.0,69387.0,1.07550189]
[1717795779853,0.07495856,69388.0,69387.0,1.27550189]
[1717795780672,0.07495996,69388.0,69387.0,1.27550189]
[1717795781253,0.07495996,69388.0,69387.0,1.34530189]
[1717795782176,0.11820488,69388.0,69387.0,1.27550189]
[1717795782553,0.11820488,69388.0,69387.0,1.34530189]
[1717795782891,0.11820503,69388.0,69387.0,1.34530189]
[1717795783922,0.00018655,69388.0,69387.0,1.19575993]
[1717795784126,0.07495953,69388.0,69387.0,1.34530589]
[1717795784328,0.11821162,69388.0,69387.0,1.34530589]
[1717795787341,0.11821162,69388.0,69387.0,1.33530589]
[1717795787548,0.11821162,69388.0,69387.0,1.34530574]
[1717795787766,0.11821162,69388.0,69387.0,1.33530574]
[1717795788167,0.11821162,69388.0,69387.0,1.34530574]
[1717795789376,0.07495953,69388.0,69387.0,1.34530574]
[1717795789527,0.11821162,69388.0,69387.0,1.34530574]
[1717795789748,0.11821543,69388.0,69387.0,1.34530515]
[1717795791324,0.11821543,69388.0,69387.0,1.42660515]
[1717795792362,0.07495916,69388.0,69387.0,1.42660515]
[1717795792561,0.11821543,69388.0,69387.0,1.42660515]
[1717795792765,0.07495916,69388.0,69387.0,1.57780515]
[1717795793649,0.07495916,69388.0,69387.0,1.57780478]
[1717795795904,0.07495901,69388.0,69387.0,1.42825993]
[1717795796100,0.07495901,69388.0,69387.0,1.57780486]
[1717795796101,0.11821449,69388.0,69387.0,1.57780486]
[1717795797142,0.01821449,69388.0,69387.0,1.57780486]
[1717795797444,0.01821449,69388.0,69387.0,1.72292273]
[1717795800245,0.01821449,69388.0,69387.0,1.57780486]
[1717795801796,0.06488322,69389.0,69388.0,0.940585]
[1717795801998,0.06488322,69389.0,69388.0,1.32734886]
[1717795802408,0.12976052,69400.0,69395.0,0.452307]
[1717795802614,0.32033041,69396.0,69395.0,0.81607086]
[1717795802818,0.61942913,69396.0,69395.0,0.81607086]
[1717795803844,0.61942913,69396.0,69395.0,0.74627086]
[1717795804068,0.61942913,69396.0,69395.0,0.81607086]
[1717795805794,0.29995872,69396.0,69395.0,0.81607086]
[1717795806039,0.61942603,69396.0,69395.0,0.81607086]
[1717795807028,0.69419947,69396.0,69395.0,0.81607086]
[1717795808190,0.69419905,69396.0,69395.0,0.81607086]
[1717795810487,0.69419861,69396.0,69395.0,0.81607086]
[1717795811323,0.70501659,69396.0,69395.0,0.81607086]
[1717795811694,0.69419861,69396.0,69395.0,0.81607086]
[1717795812561,0.69420051,69396.0,69395.0,0.81607086]
[1717795812746,0.70501849,69396.0,69395.0,0.81607086]
[1717795813021,0.70501849,69396.0,69395.0,0.29364693]
[1717795813196,0.69420051,69396.0,69395.0,0.29364693]
[1717795813369,0.69420051,69396.0,69391.0,0.14411]
[1717795813757,0.69334051,69395.0,69391.0,0.14411]
[1717795813963,0.39424179,69394.0,69391.0,0.14411]
[1717795814119,0.69334051,69393.0,69391.0,0.14411]
[1717795814325,0.69334051,69392.0,69391.0,0.14411]
[1717795814666,0.82304091,69392.0,69391.0,0.14411]
[1717795815085,0.82304091,69392.0,69389.0,0.14441893]
[1717795815289,0.39424179,69391.0,69389.0,0.14441893]
[1717795815497,0.42876011,69390.0,69388.0,0.000946]
[1717795815704,0.82302226,69389.0,69388.0,0.000946]
[1717795816247,0.69335905,69389.0,69388.0,0.000946]
[1717795816653,0.6933574,69389.0,69388.0,0.001946]
[1717795817043,0.6933574,69389.0,69388.0,0.000946]
[1717795817472,0.82302061,69389.0,69388.0,0.000946]
[1717795817676,0.73252455,69389.0,69388.0,0.000946]
[1717795818583,0.73252455,69389.0,69388.0,0.001946]
[1717795818584,0.73352455,69389.0,69388.0,0.001946]
[1717795819322,0.86307844,69389.0,69388.0,0.001946]
[1717795820328,0.6943574,69389.0,69388.0,0.001946]
[1717795820844,0.82391129,69389.0,69388.0,0.001946]
[1717795821232,0.37489491,69389.0,69388.0,0.001946]
[1717795821415,0.82395731,69389.0,69388.0,0.001946]
[1717795821584,0.69445873,69389.0,69388.0,0.001946]
[1717795823677,0.79445873,69389.0,69388.0,0.001946]
[1717795825472,1.05857373,69389.0,69388.0,0.001946]
[1717795825680,1.20299266,69389.0,69388.0,0.001946]
[1717795825897,0.264119,69387.0,69386.0,0.000946]
[1717795826021,0.97743665,69387.0,69386.0,0.000946]